bitfinex-derivatives/quotes_BTCF0:USTF0_20250309
["timestamp","ask_amount","ask_price","bid_price","bid_amount"]
[1741533961315,0.1198279,83468.0,83467.0,0.0349]
[1741533961506,0.1198293,83467.0,83466.0,0.0375]
[1741533963416,0.1567293,83467.0,83466.0,0.0375]
[1741533963715,0.1198293,83467.0,83466.0,0.1573308]
[1741533965717,0.36497974,83471.0,83466.0,0.0375]
[1741533965913,0.00417974,83471.0,83470.0,0.119825]
[1741533966217,0.00417974,83471.0,83470.0,0.203545]
[1741533967118,0.179708,83484.0,83481.0,0.1198092]
[1741533967319,0.0599026,83484.0,83481.0,0.5642892]
[1741533967623,0.12160547,83482.0,83481.0,0.5642892]
[1741533968323,0.00179767,83482.0,83481.0,0.5642892]
[1741533968709,0.28502615,83488.0,83487.0,0.1198006]
[1741533968919,0.28502615,83488.0,83487.0,0.2034806]
[1741533969423,0.40482535,83488.0,83487.0,0.08368]
[1741533969816,0.41657803,83488.0,83487.0,0.08368]
[1741533970319,0.20595188,83488.0,83487.0,0.08368]
[1741533971122,0.119815,83477.0,83475.0,0.19184]
[1741533971309,0.119815,83477.0,83476.0,0.11908]
[1741533971714,0.1198193,83474.0,83470.0,0.1198241]
[1741533971916,0.1198193,83474.0,83468.0,0.06171088]
[1741533971917,0.1188193,83474.0,83468.0,0.00179708]
[1741533972518,0.1910193,83474.0,83468.0,0.00179708]
[1741533972713,0.20272069,83474.0,83468.0,0.00179708]
[1741533974223,0.20272069,83474.0,83469.0,0.0361]
[1741533974426,0.16512069,83474.0,83469.0,0.0361]
[1741533974623,0.0353,83475.0,83473.0,0.12000044]
[1741533974824,0.3608,83478.0,83475.0,0.0599083]
[1741533975031,0.4806143,83478.0,83477.0,0.119815]
[1741533975524,0.1198108,83480.0,83478.0,0.1198136]
[1741533975728,0.0599038,83483.0,83482.0,0.1198078]
[1741533975927,0.07133815,83483.0,83482.0,0.1198078]
[1741533976330,0.0366,83483.0,83482.0,0.1198078]
[1741533976532,0.3608,83487.0,83486.0,0.1198021]
[1741533976925,0.1316553,83489.0,83488.0,0.1197992]
[1741533977118,0.2030553,83489.0,83488.0,0.1197992]
[1741533977322,0.1682553,83489.0,83488.0,0.1197992]
[1741533978726,0.1682553,83489.0,83486.0,0.0599008]
[1741533978727,0.1198006,83487.0,83486.0,0.0599008]
[1741533980933,0.1198021,83486.0,83485.0,0.0364]
[1741533981133,0.1198021,83486.0,83485.0,0.1562035]
[1741533981924,0.00017974,83490.0,83487.0,0.1197992]
[1741533982226,0.00017974,83490.0,83485.0,0.0963015]
[1741533982227,0.1796674,83503.0,83500.0,0.1197791]
[1741533982536,0.36144,83518.0,83506.0,0.1197734]
[1741533982727,0.3608,83518.0,83506.0,0.2034534]
[1741533982919,0.01184001,83515.0,83506.0,0.2034534]
[1741533983125,0.12156897,83507.0,83506.0,0.5642534]
[1741533983326,0.12156897,83507.0,83506.0,0.6002534]
[1741533983528,0.12156897,83507.0,83506.0,0.48048]
[1741533984524,0.12156897,83507.0,83506.0,0.6002534]
[1741533984728,0.1197719,83507.0,83506.0,0.6002534]
[1741533984927,0.1197719,83507.0,83506.0,0.48048]
[1741533985826,0.1197719,83507.0,83506.0,0.48248]
[1741533986026,0.1197719,83507.0,83506.0,0.6022534]
[1741533986631,0.1197719,83507.0,83506.0,0.48248]
[1741533986930,0.1197719,83507.0,83506.0,0.48244]
[1741533987231,0.1217719,83507.0,83506.0,0.48044]
[1741533987536,0.1217719,83507.0,83506.0,0.6002134]
[1741533988236,0.002,83507.0,83506.0,0.6002134]
[1741533988631,0.00017963,83515.0,83506.0,0.48044]
[1741533988833,0.00017963,83515.0,83514.0,0.4805619]
[1741533989035,0.00017963,83515.0,83514.0,0.5642019]
[1741533990542,0.00017963,83515.0,83514.0,0.57605104]
[1741533990543,0.00117963,83515.0,83514.0,0.57605104]
[1741533991142,0.12094013,83515.0,83514.0,0.5642019]
[1741533991448,0.12094013,83515.0,83514.0,0.48094]
[1741533991629,0.12094013,83515.0,83514.0,0.3973]
[1741533991834,0.1197662,83511.0,83510.0,0.01162188]
[1741533992432,0.13166301,83511.0,83510.0,0.13138948]
[1741533992631,0.13166301,83511.0,83510.0,0.1197676]
[1741533993441,0.13166301,83511.0,83510.0,0.1207676]
[1741533993638,0.13166301,83511.0,83510.0,0.001]
[1741533994336,0.20266301,83511.0,83510.0,0.001]
[1741533994730,0.1197676,83510.0,83509.0,0.0371]
[1741533995234,0.1907676,83510.0,83509.0,0.1568691]
[1741533995830,0.0351,83510.0,83509.0,0.1568691]
[1741533996139,0.002,83511.0,83510.0,0.1197676]
[1741533996337,0.002,83511.0,83510.0,0.1578676]
[1741533997241,0.002,83511.0,83510.0,0.2415076]
[1741533998145,0.1217662,83511.0,83510.0,0.2415076]
[1741533998535,0.1227662,83511.0,83510.0,0.2415076]
[1741534000639,0.58629464,83511.0,83493.0,0.00179633]
[1741534000834,0.1198222,83472.0,83471.0,0.28579621]
[1741534001743,0.0599082,83476.0,83472.0,0.1198212]
[1741534001943,0.00017963,83480.0,83472.0,0.1198209]
[1741534002250,0.1198181,83475.0,83474.0,0.1198187]
[1741534002547,0.1198193,83474.0,83473.0,0.0349]
[1741534002846,0.0599086,83476.0,83474.0,0.1198186]
[1741534003047,0.0599068,83478.0,83474.0,0.1198186]
[1741534003250,0.0599078,83477.0,83472.0,0.0599108]
[1741534003447,0.0599068,83478.0,83472.0,0.0599108]
[1741534003643,0.1198207,83473.0,83472.0,0.0599108]
[1741534003943,0.1198222,83472.0,83471.0,0.0369]
[1741534004150,0.1198222,83472.0,83471.0,0.1567236]
[1741534004836,0.1178222,83472.0,83471.0,0.2403636]
[1741534005647,0.1178222,83472.0,83471.0,0.12054]
[1741534005850,0.1178222,83472.0,83471.0,0.2403636]
[1741534006142,0.1198216,83473.0,83472.0,0.1198194]
[1741534006348,0.1198216,83473.0,83472.0,0.2396392]
[1741534006949,0.1198127,83479.0,83471.0,0.12254]
[1741534007148,0.1198127,83479.0,83478.0,0.1198121]
[1741534007345,0.00017963,83480.0,83479.0,0.1198121]
[1741534007940,0.12159107,83492.0,83491.0,0.1197949]
[1741534008145,0.12159107,83492.0,83491.0,0.2034349]
[1741534008541,0.00179757,83492.0,83491.0,0.2034349]
[1741534008846,0.00179757,83492.0,83491.0,0.21505275]
[1741534009448,0.00017963,83500.0,83499.0,0.1197834]
[1741534009754,0.00017963,83500.0,83494.0,0.3608]
[1741534010047,0.1197892,83495.0,83494.0,0.4805906]
[1741534010248,0.1197892,83495.0,83494.0,0.3608]
[1741534010446,0.1197892,83495.0,83494.0,0.4805906]
[1741534010642,0.1197892,83495.0,83494.0,0.3608]
[1741534010838,0.13169263,83495.0,83494.0,0.3608]
[1741534011047,0.1197935,83492.0,83491.0,0.001]
[1741534011339,0.1198049,83484.0,83473.0,0.08368]
[1741534011544,0.4806049,83484.0,83473.0,0.08368]
[1741534011742,0.4806049,83484.0,83471.0,0.119823]
[1741534011946,0.5389049,83484.0,83470.0,0.2035043]
[1741534012138,0.5389049,83484.0,83471.0,0.1198224]
[1741534012338,0.5389049,83484.0,83470.0,0.08368]
[1741534012544,0.5389049,83484.0,83473.0,0.0378]
[1741534012946,0.1198193,83474.0,83473.0,0.0378]
[1741534013656,0.4806193,83474.0,83473.0,0.0378]
[1741534015655,0.4806193,83474.0,83473.0,0.0418]
[1741534015853,0.1198193,83474.0,83473.0,0.0418]
[1741534017852,0.1417193,83474.0,83473.0,0.0418]
[1741534018251,0.1443193,83474.0,83473.0,0.0418]
[1741534018454,0.2279593,83474.0,83473.0,0.0418]
[1741534018855,0.2279593,83474.0,83473.0,0.004]
[1741534019249,0.1198293,83467.0,83466.0,0.0362]
[1741534019453,0.4806293,83467.0,83466.0,0.0362]
[1741534020151,0.4832293,83467.0,83466.0,0.0362]
[1741534020455,0.4842293,83467.0,83466.0,0.0362]
[1741534020755,0.4816293,83467.0,83466.0,0.0362]
[1741534020959,0.4816293,83467.0,83466.0,0.0736]
[1741534021252,0.4816293,83467.0,83466.0,0.1934308]
[1741534021469,0.001,83467.0,83466.0,0.2287308]
[1741534021659,0.3608,83487.0,83474.0,0.0599091]
[1741534021961,0.36259746,83492.0,83481.0,0.1198092]
[1741534022160,0.36259746,83492.0,83481.0,0.2034892]
[1741534022364,0.36259746,83492.0,83491.0,0.1197949]
[1741534022365,0.48239096,83492.0,83491.0,0.1197949]
[1741534022553,0.12159096,83492.0,83491.0,0.1197949]
[1741534022953,0.12159096,83492.0,83491.0,0.1586949]
[1741534023360,0.12159096,83492.0,83491.0,0.0389]
[1741534023861,0.12159096,83492.0,83491.0,0.1586949]
[1741534024066,0.12159096,83492.0,83491.0,0.0389]
[1741534025266,0.48239096,83492.0,83491.0,0.0389]
[1741534025458,0.48239096,83492.0,83491.0,0.0772]
[1741534025655,0.48239096,83492.0,83479.0,0.44444]
[1741534025656,0.44993746,83492.0,83479.0,0.44444]
[1741534025857,0.4806049,83484.0,83481.0,0.0772]
[1741534026465,0.5063049,83484.0,83481.0,0.0772]
[1741534026858,0.4806049,83484.0,83481.0,0.0772]
[1741534027262,0.4806049,83484.0,83482.0,0.0348]
[1741534027464,0.4806049,83484.0,83483.0,0.11998603]
[1741534027661,0.4806049,83484.0,83483.0,0.07297963]
[1741534028359,0.1198049,83484.0,83483.0,0.07297963]
[1741534030955,0.1228049,83484.0,83483.0,0.00017963]
[1741534031170,0.5672449,83484.0,83483.0,0.00017963]
[1741534031761,0.5710449,83484.0,83483.0,0.00017963]
[1741534031955,0.7210449,83484.0,83483.0,3e-08]
[1741534032365,0.5710449,83484.0,83483.0,3e-08]
[1741534033856,0.36369511,83484.0,83483.0,0.11980643]
[1741534034055,0.00289511,83484.0,83483.0,0.11980643]
[1741534034364,0.003,83484.0,83483.0,0.48060643]
[1741534034761,0.003,83484.0,83483.0,0.55600643]
[1741534035159,0.003,83484.0,83483.0,0.44809119]
[1741534035360,0.003,83484.0,83483.0,0.62780049]
[1741534035560,0.003,83484.0,83483.0,0.61590933]
[1741534036862,0.003,83484.0,83483.0,0.62762191]
[1741534037670,0.1228049,83484.0,83483.0,0.61590933]
[1741534039377,0.003,83484.0,83483.0,0.61590933]
[1741534039569,0.1228049,83484.0,83483.0,0.61590933]
[1741534040272,0.0598925,83498.0,83495.0,0.1796802]
[1741534040470,0.00017963,83500.0,83499.0,0.1197834]
[1741534040671,0.0598868,83506.0,83505.0,0.1197734]
[1741534040871,0.00179707,83507.0,83505.0,0.2034134]
[1741534041169,0.01356003,83521.0,83505.0,0.2034134]
[1741534041170,0.01356003,83521.0,83520.0,0.1197533]
[1741534041368,0.01356003,83521.0,83520.0,0.21488894]
[1741534041369,0.1197519,83521.0,83520.0,0.21488894]
[1741534041767,0.1197519,83521.0,83520.0,0.2033933]
[1741534042862,0.4805519,83521.0,83513.0,0.0356]
[1741534043077,0.0598801,83516.0,83505.0,0.08364]
[1741534043269,0.1197633,83513.0,83505.0,0.08364]
[1741534043670,0.1197633,83513.0,83512.0,0.11994443]
[1741534043979,0.1197633,83513.0,83512.0,0.00017963]
[1741534044574,0.1197633,83513.0,83512.0,0.11994443]
[1741534045976,0.08364,83520.0,83512.0,0.00017963]
[1741534046165,0.003,83521.0,83520.0,0.1197533]
[1741534046372,0.1227519,83521.0,83520.0,0.1928533]
[1741534046682,0.1227519,83521.0,83520.0,0.0731]
[1741534046866,0.1197519,83521.0,83520.0,0.0731]
[1741534047676,0.1197519,83521.0,83520.0,0.1928533]
[1741534047983,0.002,83521.0,83520.0,0.0366]
[1741534048184,0.1217519,83521.0,83520.0,0.1563533]
[1741534048477,0.1217519,83521.0,83520.0,0.2399933]
[1741534049583,0.1217519,83521.0,83520.0,0.12024]
[1741534049781,0.1217519,83521.0,83520.0,0.0366]
[1741534049986,0.1197519,83521.0,83520.0,0.0366]
[1741534050283,0.1217519,83521.0,83520.0,0.0366]
[1741534051491,0.1283519,83521.0,83520.0,0.0366]
[1741534052181,0.1217519,83521.0,83520.0,0.0366]
[1741534052882,0.1217519,83521.0,83520.0,0.1563533]
[1741534053075,0.002,83521.0,83520.0,0.1563533]
[1741534053271,0.002,83521.0,83513.0,0.3608]
[1741534053272,0.1217519,83521.0,83489.0,0.00179638]
[1741534053477,0.1197877,83496.0,83489.0,0.00179638]
[1741534053684,0.4805963,83490.0,83489.0,0.00179638]
[1741534054677,0.3608,83490.0,83489.0,0.00197601]
[1741534054883,0.4805963,83490.0,83489.0,0.00197601]
[1741534055085,0.4805963,83490.0,83489.0,0.08561601]
[1741534055285,0.4805963,83490.0,83489.0,0.20541381]
[1741534055685,0.4805963,83490.0,83489.0,0.08561601]
[1741534055886,0.3608,83490.0,83489.0,0.20541381]
[1741534056181,0.3608,83493.0,83492.0,0.1197935]
[1741534056372,0.3608,83493.0,83492.0,0.13189634]
[1741534056776,0.29067042,83493.0,83492.0,0.13189634]
[1741534056975,0.119792,83493.0,83492.0,0.13189634]
[1741534057378,0.119792,83493.0,83492.0,0.16939634]
[1741534057879,0.00017963,83498.0,83497.0,0.1197863]
[1741534058077,0.11996453,83498.0,83497.0,0.20360593]
[1741534060884,0.11996453,83498.0,83497.0,0.24230593]
[1741534062089,0.00017963,83498.0,83497.0,0.24230593]
[1741534064092,0.11996453,83498.0,83497.0,0.0387]
[1741534064386,0.11996453,83498.0,83497.0,0.2441263]
[1741534064788,0.11996453,83498.0,83497.0,0.2793263]
[1741534064988,0.00017963,83498.0,83497.0,0.27950593]
[1741534066588,0.11996453,83498.0,83497.0,0.27750593]
[1741534066797,0.11996453,83498.0,83497.0,0.27950593]
[1741534068788,0.00017963,83498.0,83497.0,0.27950593]
[1741534070290,0.0598849,83509.0,83502.0,0.1197791]
[1741534070595,0.1197748,83505.0,83504.0,0.1197748]
[1741534070797,0.1197748,83505.0,83504.0,0.1909748]
[1741534071091,0.1197748,83505.0,83504.0,0.0712]
[1741534071490,0.1263748,83505.0,83504.0,0.0712]
[1741534071794,0.1197748,83505.0,83504.0,0.0712]
[1741534072093,0.1197748,83505.0,83504.0,0.1909762]
[1741534074591,0.1197748,83505.0,83504.0,0.0712]
[1741534074995,0.1197748,83505.0,83504.0,0.1909762]
[1741534075494,0.1197748,83505.0,83504.0,0.2746162]
[1741534076491,0.1796534,83511.0,83510.0,0.1197676]
[1741534077097,0.3608,83512.0,83510.0,0.1197676]
[1741534077289,0.1197762,83504.0,83503.0,0.08364]
[1741534077488,0.1197762,83504.0,83503.0,0.12184]
[1741534077692,0.1197762,83504.0,83503.0,0.0382]
[1741534077892,0.1249762,83504.0,83503.0,0.1579777]
[1741534078092,0.1197762,83504.0,83503.0,0.0382]
[1741534078292,0.1197762,83504.0,83503.0,0.1579777]
[1741534078500,0.001,83505.0,83504.0,0.1197762]
[1741534078699,0.001,83505.0,83504.0,0.19125583]
[1741534078900,0.1207748,83505.0,83504.0,0.19125583]
[1741534080204,0.1207748,83505.0,83504.0,0.07147963]
[1741534080498,0.13247369,83505.0,83504.0,0.07147963]
[1741534081293,0.13147369,83505.0,83504.0,0.07147963]
[1741534082000,0.1796602,83507.0,83504.0,0.13136703]
[1741534082207,0.1796602,83507.0,83506.0,0.11995303]
[1741534082700,0.00017963,83513.0,83506.0,0.00017963]
[1741534082891,0.00017963,83513.0,83512.0,0.1197648]
[1741534083091,0.00017963,83513.0,83512.0,0.27758443]
[1741534084905,0.11994293,83513.0,83512.0,0.27758443]
[1741534085698,0.00017963,83513.0,83512.0,0.19394443]
[1741534085903,0.11994293,83513.0,83512.0,0.20287928]
[1741534086903,0.00017963,83513.0,83512.0,0.20405891]
[1741534087904,0.3608,83521.0,83520.0,0.1197533]
[1741534088114,0.3608,83521.0,83520.0,0.20353293]
[1741534088401,0.4805519,83521.0,83520.0,0.20353293]
[1741534088797,0.4805519,83521.0,83520.0,0.15917963]
[1741534089902,0.4805519,83521.0,83520.0,0.27893293]
[1741534090601,0.3608,83521.0,83520.0,0.27893293]
[1741534090998,0.3608,83521.0,83520.0,0.31703293]
[1741534091800,0.3608,83521.0,83520.0,0.32871748]
[1741534092000,0.00017963,83529.0,83520.0,0.20896418]
[1741534092205,0.00017963,83529.0,83528.0,0.11992143]
[1741534092508,0.00017963,83529.0,83528.0,0.20352143]
[1741534092704,0.3608,83546.0,83528.0,0.08377963]
[1741534092896,0.3608,83546.0,83541.0,0.1795812]
[1741534093101,0.3608,83546.0,83543.0,0.11989993]
[1741534093309,0.47600158,83544.0,83543.0,0.11989993]
[1741534093503,0.1197189,83544.0,83543.0,0.19279993]
[1741534094204,0.1197189,83544.0,83543.0,0.0729]
[1741534094602,0.1197304,83536.0,83535.0,0.00017963]
[1741534094802,0.4795304,83536.0,83535.0,0.00017963]
[1741534095111,0.1187304,83536.0,83535.0,0.00017963]
[1741534095497,0.1187304,83536.0,83535.0,0.07307963]
[1741534095702,0.1187304,83536.0,83535.0,0.19281143]
[1741534096009,0.0598644,83538.0,83537.0,0.1197289]
[1741534096214,0.119726,83540.0,83539.0,0.1197246]
[1741534096521,0.1197246,83542.0,83541.0,0.1197232]
[1741534097103,0.2063203,83544.0,83543.0,0.1197203]
[1741534097299,0.1227203,83544.0,83543.0,0.1197203]
[1741534097805,0.1197203,83544.0,83543.0,0.1197203]
[1741534098210,0.09554468,83551.0,83539.0,0.0836]
[1741534098410,0.09554468,83551.0,83549.0,0.1197117]
[1741534098411,0.3616,83550.0,83549.0,0.1197117]
[1741534098615,0.3608,83550.0,83549.0,0.1197117]
[1741534098812,0.11988713,83552.0,83551.0,0.1197089]
[1741534099011,0.00017963,83552.0,83551.0,0.1197089]
[1741534099219,0.11988703,83552.0,83551.0,0.1197089]
[1741534100114,0.11988703,83552.0,83549.0,0.0598552]
[1741534100312,0.1197103,83550.0,83549.0,0.0598552]
[1741534101410,0.01181443,83552.0,83549.0,0.0598552]
[1741534101611,0.13152223,83552.0,83549.0,0.1795667]
[1741534101809,0.13152223,83552.0,83551.0,0.1197089]
[1741534102118,0.00017963,83552.0,83551.0,0.1197089]
[1741534102611,0.00017963,83552.0,83551.0,0.21496488]
[1741534102810,0.00017963,83552.0,83551.0,0.20348853]
[1741534103607,0.00017963,83552.0,83551.0,0.21527516]
[1741534104019,0.00417963,83552.0,83551.0,0.21627516]
[1741534104314,0.00417963,83552.0,83551.0,0.20448853]
[1741534106413,0.12388703,83552.0,83551.0,0.20448853]
[1741534108519,0.00417963,83552.0,83551.0,0.20448853]
[1741534108718,0.12388703,83552.0,83551.0,0.20448853]
[1741534109316,0.00417963,83552.0,83551.0,0.20448853]
[1741534109515,0.00417963,83552.0,83551.0,0.24168853]
[1741534110217,0.1795326,83567.0,83566.0,0.1795275]
[1741534110417,0.19124276,83567.0,83566.0,0.2630875]
[1741534110720,0.19124276,83567.0,83566.0,0.143403]
[1741534111422,0.19124276,83567.0,83566.0,0.08356]
[1741534111609,0.19124276,83567.0,83566.0,0.2753474]
[1741534113718,0.1196894,83567.0,83566.0,0.3351892]
[1741534113924,0.1196894,83567.0,83566.0,0.395031]
[1741534114814,0.1795258,83569.0,83568.0,0.1196845]
[1741534115012,0.00017951,83575.0,83568.0,0.0598416]
[1741534115325,0.00017951,83575.0,83574.0,0.1196759]
[1741534116323,0.00017951,83575.0,83574.0,0.1896759]
[1741534117520,0.11985401,83575.0,83574.0,0.1896759]
[1741534118219,0.48065401,83575.0,83574.0,0.1896759]
[1741534118522,0.48065401,83575.0,83574.0,0.07]
[1741534119721,0.48065401,83575.0,83574.0,0.071]
[1741534124724,0.11985401,83575.0,83574.0,0.1906759]
[1741534124921,0.00017951,83575.0,83574.0,0.19085553]
[1741534125930,0.3608,83580.0,83579.0,0.1196688]
[1741534126228,0.1196524,83591.0,83590.0,0.119653]
[1741534129120,0.00179529,83592.0,83591.0,0.1196516]
[1741534129324,0.00179529,83592.0,83591.0,0.15743123]
[1741534129523,0.00179529,83592.0,83591.0,0.24095123]
[1741534130039,0.13347012,83592.0,83591.0,0.24095123]
[1741534132528,0.13347012,83592.0,83591.0,0.24195123]
[1741534133027,0.00179529,83592.0,83591.0,0.24195123]
[1741534136628,0.12144549,83592.0,83591.0,0.24195123]
[1741534136828,0.12144549,83592.0,83591.0,0.24095123]
[1741534137022,0.12144549,83592.0,83591.0,0.24195123]
[1741534137729,0.00179529,83592.0,83591.0,0.24195123]
[1741534137930,0.12144549,83592.0,83591.0,0.24195123]
[1741534139523,0.12144549,83592.0,83591.0,0.27985123]
[1741534139728,0.07249464,83587.0,83568.0,0.28639621]
[1741534139928,0.15418786,83592.0,83532.0,0.3608]
[1741534139929,0.0598394,83572.0,83559.0,0.40208123]
[1741534140229,0.0598598,83544.0,83533.0,0.0755]
[1741534140431,0.3608,83542.0,83541.0,0.1197232]
[1741534140629,0.3608,83560.0,83541.0,0.1197232]
[1741534140630,0.1197046,83554.0,83548.0,0.08396623]
[1741534140936,0.1197103,83550.0,83549.0,0.0755]
[1741534141433,0.0598539,83552.0,83549.0,0.2659828]
[1741534141732,0.0598539,83552.0,83551.0,0.33430133]
[1741534142639,0.0538539,83552.0,83551.0,0.21459243]
[1741534143030,0.00017951,83559.0,83555.0,0.1197017]
[1741534143224,0.00017951,83559.0,83558.0,0.33429123]
[1741534143837,0.3608,83578.0,83570.0,0.1196817]
[1741534144040,0.1795187,83574.0,83573.0,0.1196758]
[1741534144339,0.07188565,83574.0,83571.0,0.05890963]
[1741534144531,0.1196788,83572.0,83571.0,0.09470963]
[1741534144730,0.1196788,83572.0,83571.0,0.1902802]
[1741534145332,0.1196788,83572.0,83571.0,0.380763]
[1741534145539,0.25042934,83577.0,83571.0,0.40487263]
[1741534145741,0.37010184,83577.0,83576.0,0.33426553]
[1741534146032,0.37010184,83577.0,83576.0,0.41774553]
[1741534146634,0.37010184,83577.0,83576.0,0.45504553]
[1741534147928,0.1343861,83577.0,83576.0,0.45504553]
[1741534148133,0.1343861,83577.0,83576.0,0.0373]
[1741534148329,0.0147136,83577.0,83549.0,0.0598556]
[1741534148627,0.1196902,83564.0,83561.0,0.08348]
[1741534148832,0.13450912,83564.0,83562.0,0.0349]
[1741534149839,0.13450912,83564.0,83563.0,0.03747951]
[1741534151328,0.42087481,83567.0,83563.0,0.03747951]
[1741534151531,0.1196888,83565.0,83564.0,0.0376]
[1741534152040,0.1795183,83574.0,83573.0,0.1196734]
[1741534152347,0.19216744,83577.0,83576.0,0.1196731]
[1741534152838,0.07249464,83577.0,83576.0,0.1196731]
[1741534153240,0.25138144,83578.0,83576.0,0.1196731]
[1741534153433,0.1196716,83577.0,83576.0,0.1196716]
[1741534153634,0.25138144,83578.0,83576.0,0.1196716]
[1741534153834,0.25138144,83578.0,83577.0,0.33426403]
[1741534155240,0.00011697,83580.0,83579.0,0.1196688]
[1741534155443,0.00011697,83580.0,83579.0,0.41774123]
[1741534156439,0.11978427,83580.0,83579.0,0.41774123]
[1741534157639,0.11978427,83580.0,83579.0,0.2031488]
[1741534158343,0.0598375,83575.0,83571.0,0.0006]
[1741534158541,0.1795105,83578.0,83577.0,0.1196688]
[1741534158747,0.0598358,83577.0,83573.0,0.14378603]
[1741534159044,0.1196759,83574.0,83573.0,0.02410963]
[1741534160046,0.1186759,83574.0,83573.0,0.02410963]
[1741534161247,0.1186759,83574.0,83573.0,0.14378703]
[1741534161541,0.1196732,83576.0,83575.0,0.1795082]
[1741534161737,0.36691697,83580.0,83579.0,0.1196688]
[1741534161940,0.36691697,83580.0,83579.0,0.41774123]
[1741534162141,0.00611697,83580.0,83579.0,0.41774123]
[1741534163643,0.00611697,83580.0,83579.0,0.45304123]
[1741534164051,0.00011697,83580.0,83579.0,0.45304123]
[1741534164753,0.11978427,83580.0,83579.0,0.45304123]
[1741534165253,0.00611697,83580.0,83579.0,0.45404123]
[1741534166856,0.00611697,83580.0,83579.0,0.37056123]
[1741534166857,0.12578427,83580.0,83579.0,0.37056123]
[1741534167150,0.12578427,83580.0,83579.0,0.45404123]
[1741534168953,0.00611697,83580.0,83579.0,0.45404123]
[1741534169152,0.12578427,83580.0,83579.0,0.45404123]
[1741534169355,0.00611697,83580.0,83579.0,0.45404123]
[1741534169559,0.00611697,83580.0,83579.0,0.48874123]
[1741534171145,0.00611697,83580.0,83579.0,0.52284123]
[1741534175552,7e-08,83580.0,83579.0,0.71440123]
[1741534176050,0.35042934,83600.0,83599.0,0.1196401]
[1741534176244,0.35042934,83600.0,83599.0,0.41767253]
[1741534176852,0.18092934,83600.0,83599.0,0.4326168]
[1741534177358,0.18092934,83600.0,83599.0,0.7934168]
[1741534177750,0.32198058,83610.0,83599.0,0.7934168]
[1741534178059,0.32198058,83610.0,83604.0,0.33422543]
[1741534178261,0.32198058,83610.0,83604.0,0.41766543]
[1741534178455,0.32198058,83610.0,83604.0,0.77846543]
[1741534178658,0.22970496,83605.0,83604.0,0.77846543]
[1741534179962,0.32198058,83610.0,83609.0,0.1196258]
[1741534180161,0.3608,83632.0,83614.0,0.1196187]
[1741534180356,0.0495299,83637.0,83614.0,0.41765113]
[1741534180357,0.1195993,83628.0,83614.0,0.41765113]
[1741534180657,0.2392313,83619.0,83618.0,0.2392089]
[1741534180858,0.2392313,83619.0,83618.0,0.6834489]
[1741534181054,0.1196141,83619.0,83618.0,0.89804133]
[1741534181259,0.2516126,83626.0,83625.0,0.1196029]
[1741534181457,0.2516126,83626.0,83625.0,0.3935257]
[1741534182054,0.2516126,83626.0,83625.0,0.4667257]
[1741534182954,0.311416,83626.0,83625.0,0.4667257]
[1741534183761,0.311416,83626.0,83612.0,0.1794219]
[1741534183762,0.1196215,83613.0,83612.0,0.1794219]
[1741534183964,0.1196215,83613.0,83612.0,0.08344]
[1741534184165,0.4804215,83613.0,83612.0,0.2030615]
[1741534184360,0.1196215,83613.0,83612.0,0.2030615]
[1741534184666,0.1550215,83613.0,83612.0,0.2396615]
[1741534185264,0.1881215,83613.0,83612.0,0.2749615]
[1741534185856,0.0695,83613.0,83612.0,0.2749615]
[1741534186067,0.1891201,83613.0,83612.0,0.1915215]
[1741534186260,0.0695,83613.0,83612.0,0.1915215]
[1741534187066,0.0366,83614.0,83612.0,0.3820043]
[1741534187279,0.0366,83614.0,83613.0,0.3101029]
[1741534187669,0.0366,83614.0,83613.0,0.3820029]
[1741534188875,0.0366,83614.0,83610.0,0.0835794]
[1741534188876,0.0366,83614.0,83610.0,0.0001794]
[1741534189178,0.1196559,83588.0,83583.0,0.0598315]
[1741534189372,0.1196559,83588.0,83584.0,0.0355]
[1741534189769,0.1196559,83588.0,83578.0,0.0834]
[1741534190171,0.1537559,83588.0,83579.0,0.0001794]
[1741534190479,0.16842456,83588.0,83579.0,0.0001794]
[1741534190883,0.16842456,83588.0,83580.0,0.39339507]
[1741534191378,0.16842456,83588.0,83580.0,0.0358]
[1741534192284,0.20532456,83588.0,83580.0,0.0358]
[1741534194275,0.21032456,83588.0,83580.0,0.0358]
[1741534194669,0.21908594,83588.0,83580.0,0.0358]
[1741534195575,0.21908594,83588.0,83581.0,0.0367]
[1741534195771,0.21908594,83588.0,83552.0,0.395]
[1741534195772,0.119706,83553.0,83552.0,0.395]
[1741534196081,0.1196996,83560.0,83559.0,0.14380463]
[1741534196273,0.0834,83567.0,83559.0,0.0342]
[1741534196472,0.119696,83560.0,83559.0,0.17800603]
[1741534197284,0.194596,83560.0,83559.0,0.17800603]
[1741534198476,0.194596,83560.0,83559.0,0.06330963]
[1741534198682,0.194596,83560.0,83559.0,0.18300703]
[1741534199181,0.194596,83560.0,83559.0,0.06330963]
[1741534200086,0.194596,83560.0,83559.0,0.18300703]
[1741534200284,0.1202,83567.0,83559.0,0.25379243]
[1741534200486,0.1348439,83566.0,83565.0,0.02410963]
[1741534200780,0.2545313,83566.0,83565.0,0.02410963]
[1741534204791,0.2545313,83566.0,83565.0,0.14379843]
[1741534205177,0.0834,83570.0,83560.0,0.3608]
[1741534205178,0.3608,83584.0,83567.0,0.21459243]
[1741534205380,0.1196673,83580.0,83579.0,0.21459243]
[1741534206286,0.1196673,83580.0,83579.0,0.33426123]
[1741534206885,0.1196673,83580.0,83579.0,0.21459243]
[1741534207588,0.1196673,83580.0,83579.0,0.33426123]
[1741534207783,0.1216673,83580.0,83579.0,0.33426123]
[1741534207983,0.002,83580.0,83579.0,0.33426123]
[1741534208184,0.002,83580.0,83579.0,0.45276123]
[1741534209484,0.002,83580.0,83579.0,0.48926123]
[1741534209686,0.1216673,83580.0,83579.0,0.48926123]
[1741534210289,0.1196673,83580.0,83579.0,0.48926123]
[1741534211091,0.1196673,83580.0,83579.0,0.52686123]
[1741534213494,0.1216673,83580.0,83579.0,0.52686123]
[1741534214894,0.002,83580.0,83579.0,0.52686123]
[1741534216493,0.002,83580.0,83579.0,0.54499573]
[1741534218692,0.0598239,83594.0,83593.0,0.1904828]
[1741534219003,0.1794712,83594.0,83593.0,0.1904828]
[1741534219304,0.1196487,83593.0,83592.0,0.1196491]
[1741534219494,0.1196487,83593.0,83592.0,0.3101319]
[1741534221393,0.002,83594.0,83593.0,0.1196487]
[1741534221599,0.1216473,83594.0,83593.0,0.1196487]
[1741534222101,0.002,83594.0,83593.0,0.3101315]
[1741534222399,0.1216473,83594.0,83593.0,0.3101315]
[1741534223394,0.1196473,83594.0,83593.0,0.3101315]
[1741534223702,0.1206473,83594.0,83593.0,0.3101315]
[1741534223896,0.001,83594.0,83593.0,0.3101315]
[1741534224494,0.1196502,83592.0,83591.0,0.2030487]